fUSD/lending_fUSD_20250103
["ID","MTS","AMOUNT","RATE_DAILY","PERIOD"]
[347558348,1735917042633,-1719.5553178,9.251e-05,2]
[347558349,1735917042642,-923.78,9.251e-05,2]
[347558350,1735917042652,-2006.25,9.251e-05,2]
[347558351,1735917042661,-500.0,9.251e-05,2]
[347558352,1735917042671,-500.0,9.251e-05,2]
[347558353,1735917042681,-1275.01,9.251e-05,2]
[347558354,1735917042690,-708.62,9.251e-05,2]
[347558355,1735917042700,-1608.73,9.251e-05,2]
[347558356,1735917042709,-2532.56,9.251e-05,2]
[347558357,1735917042719,-1000.0,9.251e-05,2]
[347558358,1735917042728,-709.66,9.251e-05,2]
[347558359,1735917042737,-558.81,9.251e-05,2]
[347558360,1735917042748,-200.0,9.272e-05,2]
[347558361,1735917042759,-227.0,9.328e-05,2]
[347558362,1735917042768,-500.0,9.421e-05,2]
[347558363,1735917042778,-500.0,9.421e-05,2]
[347558364,1735917042787,-500.0,9.421e-05,2]
[347558365,1735917042796,-500.0,9.421e-05,2]
[347558366,1735917042805,-500.0,9.421e-05,2]
[347558367,1735917042815,-500.0,9.421e-05,2]
[347558368,1735917042824,-500.0,9.421e-05,2]
[347558369,1735917042834,-500.0,9.421e-05,2]
[347558370,1735917042843,-500.0,9.421e-05,2]
[347558371,1735917042853,-886.48,9.421e-05,2]
[347558372,1735917042862,-500.0,9.421e-05,2]
[347558373,1735917042871,-500.0,9.421e-05,2]
[347558374,1735917042882,-557.75,9.421e-05,2]
[347558375,1735917042891,-500.0,9.421e-05,2]
[347558376,1735917042900,-541.89,9.421e-05,2]
[347558377,1735917042911,-500.0,9.421e-05,2]
[347558378,1735917042920,-500.0,9.421e-05,2]
[347558379,1735917042929,-500.0,9.421e-05,2]
[347558380,1735917042939,-274.84724424,9.421e-05,2]
[347558381,1735917042975,-225.15275576,9.421e-05,2]
[347558382,1735917042984,-500.0,9.421e-05,2]
[347558383,1735917042994,-500.0,9.421e-05,2]
[347558384,1735917043006,-500.0,9.421e-05,2]
[347558385,1735917043016,-381.54392499,9.421e-05,2]
[347558391,1735917045528,-368.47011836,9.147e-05,2]
[347558392,1735917045541,-701.38737661,9.147e-05,2]
[347558393,1735917045740,-237.39250503,9.147e-05,2]
[347558394,1735917045751,-370.96462446,9.249e-05,2]
[347558395,1735917045763,-1005.33537554,9.249e-05,2]
[347558396,1735917045772,-505.12,9.249e-05,2]
[347558397,1735917045781,-118.45607501,9.421e-05,2]
[347558398,1735917045791,-500.0,9.421e-05,2]
[347558399,1735917045800,-296.78854945,9.421e-05,2]
[347558400,1735917045811,-235.62145055,9.421e-05,2]
[347558401,1735917045820,-791.37,9.421e-05,2]
[347558402,1735917045830,-500.0,9.421e-05,2]
[347558403,1735917045839,-500.0,9.421e-05,2]
[347558404,1735917045848,-500.0,9.421e-05,2]
[347558405,1735917045858,-500.0,9.421e-05,2]
[347558406,1735917045867,-500.0,9.421e-05,2]
[347558407,1735917045877,-500.0,9.421e-05,2]
[347558408,1735917045887,-500.0,9.421e-05,2]
[347558409,1735917045896,-500.0,9.421e-05,2]
[347558410,1735917045906,-928.52,9.421e-05,2]
[347558411,1735917045916,-500.0,9.421e-05,2]
[347558412,1735917045931,-500.0,9.421e-05,2]
[347558413,1735917045940,-595.52,9.421e-05,2]
[347558414,1735917045950,-500.0,9.421e-05,2]
[347558415,1735917045960,-500.0,9.421e-05,2]
[347558416,1735917045969,-500.0,9.421e-05,2]
[347558417,1735917045978,-500.0,9.421e-05,2]
[347558418,1735917045988,-500.0,9.421e-05,2]
[347558419,1735917045997,-500.0,9.421e-05,2]
[347558420,1735917046008,-500.0,9.421e-05,2]
[347558421,1735917046018,-500.0,9.421e-05,2]
[347558422,1735917046027,-500.0,9.421e-05,2]
[347558423,1735917046036,-500.0,9.421e-05,2]
[347558424,1735917046047,-500.0,9.421e-05,2]
[347558425,1735917046056,-500.0,9.421e-05,2]
[347558426,1735917046066,-500.0,9.421e-05,2]
[347558427,1735917046075,-500.0,9.421e-05,2]
[347558428,1735917046085,-500.0,9.421e-05,2]
[347558429,1735917046094,-951.01,9.421e-05,2]
[347558430,1735917046104,-500.0,9.421e-05,2]
[347558431,1735917046113,-500.0,9.421e-05,2]
[347558432,1735917046123,-780.92,9.421e-05,2]
[347558433,1735917046132,-500.0,9.421e-05,2]
[347558434,1735917046142,-615.16,9.421e-05,2]
[347558435,1735917046153,-500.0,9.421e-05,2]
[347558436,1735917046163,-500.0,9.421e-05,2]
[347558437,1735917046172,-743.75,9.421e-05,2]
[347558438,1735917046181,-500.0,9.421e-05,2]
[347558439,1735917046190,-500.0,9.421e-05,2]
[347558440,1735917046203,-500.0,9.421e-05,2]
[347558441,1735917046212,-500.0,9.421e-05,2]
[347558442,1735917046222,-1080.83,9.421e-05,2]
[347558443,1735917046232,-500.0,9.421e-05,2]
[347558444,1735917046241,-776.22,9.421e-05,2]
[347558445,1735917046253,-500.0,9.421e-05,2]
[347558446,1735917046263,-1307.25,9.421e-05,2]
[347558447,1735917046273,-500.0,9.422e-05,2]
[347558448,1735917046283,-500.0,9.422e-05,2]
[347558449,1735917046293,-500.0,9.422e-05,2]
[347558450,1735917046302,-500.0,9.422e-05,2]
[347558451,1735917046311,-500.0,9.422e-05,2]
[347558452,1735917046323,-500.0,9.422e-05,2]
[347558453,1735917046333,-500.0,9.422e-05,2]
[347558454,1735917046342,-500.0,9.422e-05,2]
[347558455,1735917046351,-500.0,9.422e-05,2]
[347558456,1735917046360,-500.0,9.422e-05,2]
[347558457,1735917046370,-500.0,9.422e-05,2]
[347558458,1735917046379,-500.0,9.422e-05,2]
[347558459,1735917046388,-500.0,9.422e-05,2]
[347558460,1735917046398,-500.0,9.422e-05,2]
[347558461,1735917046407,-500.0,9.422e-05,2]
[347558462,1735917046416,-500.0,9.422e-05,2]
[347558463,1735917046426,-500.0,9.422e-05,2]
[347558464,1735917046435,-500.0,9.422e-05,2]
[347558465,1735917046444,-500.0,9.422e-05,2]
[347558466,1735917046453,-500.0,9.422e-05,2]
[347558467,1735917046464,-500.0,9.422e-05,2]
[347558468,1735917046473,-500.0,9.422e-05,2]
[347558469,1735917046483,-379.76588204,9.422e-05,2]
[347558470,1735917046491,-500.0,9.422e-05,2]
[347558471,1735917046502,-500.0,9.422e-05,2]
[347558472,1735917046512,-500.0,9.422e-05,2]
[347558473,1735917046521,-500.0,9.422e-05,2]
[347558474,1735917046530,-500.0,9.422e-05,2]
[347558475,1735917046539,-500.0,9.422e-05,2]
[347558476,1735917046548,-500.0,9.422e-05,2]
[347558477,1735917046558,-500.0,9.422e-05,2]
[347558478,1735917046567,-500.0,9.422e-05,2]
[347558479,1735917046576,-500.0,9.422e-05,2]
[347558480,1735917046586,-500.0,9.422e-05,2]
[347558481,1735917046595,-1.63048393,9.422e-05,2]
[347558482,1735917046609,-498.36951607,9.422e-05,2]
[347558483,1735917046620,-500.0,9.422e-05,2]
[347558484,1735917046629,-500.0,9.422e-05,2]
[347558485,1735917046638,-500.0,9.422e-05,2]
[347558486,1735917046648,-500.0,9.422e-05,2]
[347558487,1735917046658,-506.67,9.422e-05,2]
[347558488,1735917046668,-500.0,9.422e-05,2]
[347558489,1735917046676,-536.9,9.422e-05,2]
[347558490,1735917046685,-500.0,9.423e-05,2]
[347558491,1735917046696,-674.77,9.423e-05,2]
[347558492,1735917046705,-1118.65,9.423e-05,2]
[347558493,1735917046714,-1304.04,9.423e-05,2]
[347558494,1735917046723,-1843.62,9.423e-05,2]
[347558495,1735917046735,-500.0,9.423e-05,2]
[347558496,1735917046744,-500.0,9.423e-05,2]
[347558497,1735917046756,-1181.07,9.423e-05,2]
[347558498,1735917046766,-500.0,9.423e-05,2]
[347558499,1735917046775,-500.0,9.423e-05,2]
[347558500,1735917046784,-500.0,9.423e-05,2]
[347558501,1735917046793,-587.26,9.423e-05,2]
[347558502,1735917046803,-4832.34,9.423e-05,2]
[347558503,1735917046812,-523.32,9.423e-05,2]
[347558504,1735917046822,-1410.73,9.423e-05,2]
[347558505,1735917046831,-2185.9,9.423e-05,2]
[347558506,1735917046840,-1228.66,9.423e-05,2]
[347558507,1735917046850,-1660.51,9.423e-05,2]
[347558508,1735917046859,-500.0,9.423e-05,2]
[347558509,1735917046868,-3285.72,9.423e-05,2]
[347558510,1735917046877,-2403.4,9.423e-05,2]
[347558511,1735917046886,-607.78,9.423e-05,2]
[347558512,1735917046895,-1294.47,9.423e-05,2]
[347558513,1735917046904,-1170.57,9.423e-05,2]
[347558514,1735917046913,-500.0,9.423e-05,2]
[347558515,1735917046922,-326.52,9.424e-05,2]
[347558516,1735917046935,-152.0,9.507e-05,3]
[347558517,1735917046944,-500.0,9.523e-05,2]
[347558518,1735917046953,-1245.25,9.523e-05,2]
[347558519,1735917046962,-568.72,9.523e-05,2]
[347558520,1735917046972,-500.0,9.523e-05,2]
[347558521,1735917046981,-500.0,9.523e-05,2]
[347558522,1735917046990,-1230.87,9.523e-05,2]
[347558523,1735917047002,-757.22,9.523e-05,2]
[347558524,1735917047011,-1593.7,9.523e-05,2]
[347558525,1735917047020,-2121.48,9.523e-05,2]
[347558526,1735917047030,-1621.47,9.523e-05,2]
[347558527,1735917047039,-500.0,9.523e-05,2]
[347558528,1735917047048,-1273.5,9.523e-05,2]
[347558529,1735917047057,-1105.05,9.523e-05,2]
[347558530,1735917047067,-500.0,9.523e-05,2]
[347558531,1735917047078,-500.0,9.523e-05,2]
[347558532,1735917047087,-859.54,9.523e-05,2]
[347558533,1735917047097,-524.93,9.523e-05,2]
[347558534,1735917047358,-4741.821632,9.523e-05,2]
[347558535,1735917047368,-500.0,9.523e-05,2]
[347558536,1735917047378,-2170.36,9.523e-05,2]
[347558537,1735917047387,-500.0,9.523e-05,2]
[347558538,1735917047397,-230.631248,9.523e-05,2]
[347558539,1735917047406,-2293.49,9.523e-05,2]
[347558540,1735917047415,-580.96,9.523e-05,2]
[347558541,1735917047425,-155.826197,9.523e-05,2]
[347558542,1735917047434,-500.0,9.523e-05,2]
[347558543,1735917047443,-500.0,9.523e-05,2]
[347558544,1735917047452,-1376.3,9.523e-05,2]
[347558545,1735917047462,-505.12,9.523e-05,2]
[347558546,1735917047472,-500.0,9.524e-05,2]
[347558547,1735917047481,-500.0,9.524e-05,2]
[347558548,1735917047491,-500.0,9.524e-05,2]
[347558549,1735917047501,-500.0,9.524e-05,2]
[347558550,1735917047510,-500.0,9.524e-05,2]
[347558551,1735917047520,-500.0,9.524e-05,2]
[347558552,1735917047530,-500.0,9.524e-05,2]
[347558553,1735917047539,-551.87476657,9.524e-05,2]
[347558554,1735917047548,-500.0,9.524e-05,2]
[347558555,1735917047557,-500.0,9.524e-05,2]
[347558556,1735917047567,-500.0,9.524e-05,2]
[347558557,1735917047576,-500.0,9.524e-05,2]
[347558558,1735917047586,-576.4027639,9.524e-05,2]
[347558559,1735917047595,-500.0,9.524e-05,2]
[347558560,1735917047605,-500.0,9.524e-05,2]
[347558561,1735917047615,-500.0,9.524e-05,2]
[347558562,1735917047626,-500.0,9.524e-05,2]
[347558563,1735917047636,-500.0,9.524e-05,2]
[347558564,1735917047645,-500.0,9.524e-05,2]
[347558565,1735917047654,-500.0,9.524e-05,2]
[347558566,1735917047665,-500.0,9.524e-05,2]
[347558567,1735917047674,-500.0,9.524e-05,2]
[347558568,1735917047683,-500.0,9.524e-05,2]
[347558569,1735917047694,-500.0,9.524e-05,2]
[347558570,1735917047703,-500.0,9.524e-05,2]
[347558571,1735917047712,-500.0,9.524e-05,2]
[347558572,1735917047721,-500.0,9.524e-05,2]
[347558573,1735917047730,-500.0,9.524e-05,2]
[347558574,1735917047739,-800.53,9.524e-05,2]
[347558575,1735917047751,-500.0,9.524e-05,2]
[347558576,1735917047760,-500.0,9.524e-05,2]
[347558577,1735917047769,-500.0,9.524e-05,2]
[347558578,1735917047779,-330.18639608,9.524e-05,2]
[347558579,1735917047788,-500.0,9.524e-05,2]
[347558580,1735917047798,-500.0,9.524e-05,2]
[347558581,1735917047808,-500.0,9.524e-05,2]
[347558582,1735917047818,-500.0,9.524e-05,2]
[347558583,1735917047828,-500.0,9.524e-05,2]
[347558584,1735917047837,-500.0,9.524e-05,2]
[347558585,1735917047846,-500.0,9.524e-05,2]
[347558586,1735917047855,-500.0,9.524e-05,2]
[347558587,1735917047863,-500.0,9.524e-05,2]
[347558588,1735917047872,-500.0,9.524e-05,2]
[347558589,1735917047881,-500.0,9.524e-05,2]
[347558590,1735917047891,-500.0,9.524e-05,2]
[347558591,1735917047901,-500.0,9.524e-05,2]
[347558592,1735917047910,-500.0,9.524e-05,2]
[347558593,1735917047920,-210.21401931,9.524e-05,2]
[347558594,1735917047930,-533.73,9.524e-05,2]
[347558595,1735917047941,-500.0,9.524e-05,2]
[347558596,1735917047950,-500.0,9.524e-05,2]
[347558597,1735917047960,-500.0,9.524e-05,2]
[347558598,1735917047969,-500.0,9.524e-05,2]
[347558599,1735917047978,-500.0,9.524e-05,2]
[347558600,1735917047988,-500.0,9.524e-05,2]
[347558601,1735917047997,-500.0,9.524e-05,2]
[347558602,1735917048008,-500.0,9.524e-05,2]
[347558603,1735917048018,-500.0,9.524e-05,2]
[347558604,1735917048028,-500.0,9.524e-05,2]
[347558605,1735917048038,-500.0,9.524e-05,2]
[347558606,1735917048048,-500.0,9.524e-05,2]
[347558607,1735917048057,-500.0,9.524e-05,2]
[347558608,1735917048067,-500.0,9.524e-05,2]
[347558609,1735917048078,-533.01,9.524e-05,2]
[347558610,1735917048088,-500.0,9.524e-05,2]
[347558611,1735917048098,-500.0,9.524e-05,2]
[347558612,1735917048107,-500.0,9.524e-05,2]
[347558613,1735917048117,-533.97,9.524e-05,2]
[347558614,1735917048127,-500.0,9.524e-05,2]
[347558615,1735917048138,-500.0,9.524e-05,2]
[347558616,1735917048148,-500.0,9.524e-05,2]
[347558617,1735917048158,-500.0,9.524e-05,2]
[347558618,1735917048168,-500.0,9.524e-05,2]
[347558619,1735917048178,-500.0,9.524e-05,2]
[347558620,1735917048187,-518.72,9.524e-05,2]
[347558621,1735917048197,-500.0,9.524e-05,2]
[347558622,1735917048207,-500.0,9.524e-05,2]
[347558623,1735917048217,-533.19,9.524e-05,2]
[347558624,1735917048228,-500.0,9.524e-05,2]
[347558625,1735917048238,-500.0,9.524e-05,2]
[347558626,1735917048248,-745.47,9.524e-05,2]
[347558627,1735917048260,-771.65,9.524e-05,2]
[347558628,1735917048271,-500.0,9.524e-05,2]
[347558629,1735917048280,-1053.43,9.524e-05,2]
[347558630,1735917048292,-500.0,9.524e-05,2]
[347558631,1735917048302,-500.0,9.524e-05,2]
[347558632,1735917048312,-500.0,9.524e-05,2]
[347558633,1735917048322,-576.78,9.524e-05,2]
[347558634,1735917048332,-500.0,9.524e-05,2]
[347558635,1735917048341,-500.0,9.524e-05,2]
[347558636,1735917048351,-500.0,9.524e-05,2]
[347558637,1735917048361,-516.68,9.524e-05,2]
[347558638,1735917048370,-2128.6,9.524e-05,2]
[347558639,1735917048380,-500.0,9.524e-05,2]
[347558640,1735917048390,-500.0,9.524e-05,2]
[347558641,1735917048400,-500.0,9.524e-05,2]
[347558642,1735917048411,-500.0,9.524e-05,2]
[347558643,1735917048420,-500.0,9.524e-05,2]
[347558644,1735917048433,-626.66,9.524e-05,2]
[347558645,1735917048443,-850.88,9.524e-05,2]
[347558646,1735917048453,-500.0,9.524e-05,2]
[347558647,1735917048463,-476.60437873,9.524e-05,2]
[347558648,1735917048473,-775.35,9.524e-05,2]
[347558649,1735917048483,-500.0,9.524e-05,2]
[347558650,1735917048493,-500.0,9.524e-05,2]
[347558651,1735917048505,-1596.91,9.524e-05,2]
[347558652,1735917048515,-526.74,9.524e-05,2]
[347558653,1735917048529,-500.0,9.524e-05,2]
[347558654,1735917048540,-500.0,9.524e-05,2]
[347558655,1735917048550,-500.0,9.524e-05,2]
[347558656,1735917048560,-2456.2,9.524e-05,2]
[347558657,1735917048569,-664.25,9.524e-05,2]
[347558658,1735917048579,-500.0,9.524e-05,2]
[347558659,1735917048588,-888.2,9.524e-05,2]
[347558660,1735917048598,-500.0,9.524e-05,2]
[347558661,1735917048609,-1416.15,9.524e-05,2]
[347558662,1735917048623,-500.0,9.524e-05,2]
[347558663,1735917048634,-500.0,9.524e-05,2]
[347558664,1735917048644,-500.0,9.524e-05,2]
[347558665,1735917048655,-500.0,9.524e-05,2]
[347558666,1735917048666,-500.0,9.524e-05,2]
[347558667,1735917048678,-500.0,9.524e-05,2]
[347558668,1735917048687,-1142.84,9.524e-05,2]
[347558669,1735917048697,-559.28,9.524e-05,2]
[347558670,1735917048707,-536.21,9.524e-05,2]
[347558671,1735917048717,-503.69538053,9.524e-05,2]
[347558672,1735917048727,-1108.61,9.524e-05,2]
[347558673,1735917048737,-500.0,9.524e-05,2]
[347558674,1735917048748,-2824.54,9.524e-05,2]
[347558675,1735917048761,-500.0,9.524e-05,2]
[347558676,1735917048771,-572.64,9.524e-05,2]
[347558677,1735917048781,-872.14750934,9.524e-05,2]
[347558682,1735917522517,-234.0,0.00014055,30]
[347558683,1735917603338,156.0,9.524e-05,30]
[347558684,1735917603728,156.0,0.00010356,30]
[347558685,1735917603826,158.0,9.524e-05,30]
[347558686,1735917604065,156.0,0.00011187,30]
[347558687,1735917604181,158.0,0.00011084,30]
[347558688,1735917604516,156.0,0.00012019,30]
[347558689,1735917604809,156.0,0.00012851,30]
[347558690,1735917605137,156.0,0.00013683,30]
[347558691,1735917605168,158.0,0.00012643,30]
[347558692,1735917695736,1000.0,0.00013,30]
[347558693,1735917759655,199.0,9.524e-05,30]
[347558694,1735917760269,199.0,0.00010181,30]
[347558695,1735917760633,199.0,0.00010837,30]
[347558696,1735917761021,199.0,0.00011494,30]
[347558698,1735917903402,158.0,9.524e-05,30]
[347558699,1735917903525,160.0,9.524e-05,30]
[347558700,1735917903704,158.0,0.00011084,30]
[347558701,1735917903876,160.0,0.00010658,30]
[347558702,1735917904110,158.0,0.00012643,30]
[347558703,1735917904220,160.0,0.00011792,30]
[347558704,1735917904550,160.0,0.00012927,30]
[347558705,1735917904943,160.0,0.00014061,30]
[347558724,1735918141067,4000.0,0.0002,120]
[347558742,1735918204383,158.0,9.524e-05,30]
[347558743,1735918204425,161.0,9.524e-05,30]
[347558744,1735918204732,158.0,0.00012019,30]
[347558745,1735918204768,161.0,0.00011603,30]
[347558746,1735918205993,161.0,0.00013683,30]
[347558756,1735918231820,-305.32013122,8.219e-05,2]
[347558757,1735918231832,-980.88986878,8.219e-05,2]
[347558758,1735918231841,-250.0,8.249e-05,2]
[347558759,1735918231851,-1000.0,8.316e-05,2]
[347558760,1735918231860,-190.45,8.386e-05,2]
[347558761,1735918231870,-250.0,8.428e-05,2]
[347558762,1735918231880,-828.97,8.465e-05,2]
[347558763,1735918231890,-300.0,8.539e-05,2]
[347558764,1735918231899,-19570.32,8.54e-05,2]
[347558765,1735918231908,-23900.0,8.565e-05,2]
[347558766,1735918231918,-1500.0,8.6e-05,2]
[347558767,1735918231927,-874.83,8.766e-05,2]
[347558768,1735918231938,-771.41,8.766e-05,2]
[347558769,1735918231948,-152.0,8.91e-05,2]
[347558770,1735918231962,-500.0,8.986e-05,2]
[347558771,1735918231971,-1839.06,9.147e-05,2]
[347558772,1735918231981,-500.0,9.147e-05,2]
[347558773,1735918231990,-494.17,9.147e-05,2]
[347558774,1735918232001,-495.21,9.147e-05,2]
[347558775,1735918232010,-727.31,9.149e-05,2]
[347558776,1735918232020,-1168.76,9.149e-05,2]
[347558794,1735918232274,-649.57,9.149e-05,2]
[347558796,1735918232289,-1474.67,9.149e-05,2]
[347558798,1735918232299,-1000.0,9.149e-05,2]
[347558800,1735918232308,-650.53,9.149e-05,2]
[347558802,1735918232318,-512.24,9.149e-05,2]
[347558804,1735918232327,-1964.96,9.149e-05,2]
[347558806,1735918232336,-2321.52,9.149e-05,2]
[347558808,1735918232345,-3218.5532,9.149e-05,2]
[347558810,1735918232355,-1447.6891,9.15e-05,2]
[347558812,1735918232364,-1000.0,9.15e-05,2]
[347558814,1735918232373,-441.6,9.151e-05,2]
[347558816,1735918232383,-299.99,9.151e-05,2]
[347558818,1735918232393,-3861.3576,9.22e-05,2]
[347558820,1735918232402,-3892.92880674,9.248e-05,2]
[347558822,1735918232411,-500.0,9.249e-05,2]
[347558824,1735918232420,-500.0,9.249e-05,2]
[347558826,1735918232429,-500.0,9.249e-05,2]
[347558829,1735918232441,-500.0,9.249e-05,2]
[347558832,1735918232450,-500.0,9.249e-05,2]
[347558834,1735918232459,-500.0,9.249e-05,2]
[347558836,1735918232467,-500.0,9.249e-05,2]
[347558837,1735918232477,-812.6,9.249e-05,2]
[347558839,1735918232488,-500.0,9.249e-05,2]
[347558841,1735918232496,-500.0,9.249e-05,2]
[347558843,1735918232506,-511.27,9.249e-05,2]
[347558845,1735918232516,-500.0,9.249e-05,2]
[347558847,1735918232525,-500.0,9.249e-05,2]
[347558849,1735918232534,-500.0,9.249e-05,2]
[347558851,1735918232543,-500.0,9.249e-05,2]
[347558853,1735918232552,-500.0,9.249e-05,2]
[347558855,1735918232561,-500.0,9.249e-05,2]
[347558857,1735918232570,-500.0,9.249e-05,2]
[347558859,1735918232579,-648.63008358,9.249e-05,2]
[347558861,1735918232588,-500.0,9.249e-05,2]
[347558863,1735918232597,-500.0,9.249e-05,2]
[347558865,1735918232606,-500.0,9.249e-05,2]
[347558867,1735918232615,-500.0,9.249e-05,2]
[347558869,1735918232625,-364.25514682,9.249e-05,2]
[347558871,1735918232635,-500.0,9.249e-05,2]
[347558873,1735918232645,-500.0,9.249e-05,2]
[347558875,1735918232655,-500.0,9.249e-05,2]
[347558877,1735918232665,-725.42,9.249e-05,2]
[347558879,1735918232675,-500.0,9.249e-05,2]
[347558881,1735918232687,-550.67269608,9.249e-05,2]
[347558883,1735918232697,-500.0,9.249e-05,2]
[347558885,1735918232706,-500.0,9.249e-05,2]
[347558887,1735918232715,-500.0,9.249e-05,2]
[347558889,1735918232725,-500.0,9.249e-05,2]
[347558891,1735918232734,-500.41,9.249e-05,2]
[347558893,1735918232744,-500.0,9.249e-05,2]
[347558895,1735918232754,-851.15,9.249e-05,2]
[347558897,1735918232763,-500.0,9.249e-05,2]
[347558899,1735918232773,-690.43,9.249e-05,2]
[347558901,1735918232783,-500.0,9.249e-05,2]
[347558903,1735918232792,-559.62,9.249e-05,2]
[347558905,1735918232802,-500.0,9.249e-05,2]
[347558907,1735918232811,-500.0,9.249e-05,2]
[347558909,1735918232820,-500.0,9.249e-05,2]
[347558911,1735918232830,-500.0,9.249e-05,2]
[347558913,1735918232839,-500.0,9.249e-05,2]
[347558915,1735918232848,-500.0,9.249e-05,2]
[347558917,1735918232858,-592.76,9.249e-05,2]
[347558919,1735918232866,-500.0,9.249e-05,2]
[347558921,1735918232875,-500.0,9.249e-05,2]
[347558923,1735918232885,-500.0,9.249e-05,2]
[347558925,1735918232894,-1025.43,9.249e-05,2]
[347558927,1735918232903,-500.0,9.249e-05,2]
[347558929,1735918232911,-500.0,9.249e-05,2]
[347558931,1735918232921,-500.0,9.249e-05,2]
[347558933,1735918232932,-500.0,9.249e-05,2]
[347558935,1735918232942,-500.0,9.249e-05,2]
[347558937,1735918232956,-1195.37,9.249e-05,2]
[347558939,1735918232965,-715.84,9.249e-05,2]
[347558941,1735918232975,-500.0,9.249e-05,2]
[347558943,1735918232984,-563.9,9.249e-05,2]
[347558945,1735918232994,-1689.99,9.249e-05,2]
[347558947,1735918233003,-500.0,9.249e-05,2]
[347558949,1735918233013,-500.0,9.249e-05,2]
[347558951,1735918233023,-681.77,9.249e-05,2]
[347558953,1735918233032,-500.0,9.249e-05,2]
[347558955,1735918233042,-500.0,9.249e-05,2]
[347558956,1735918233052,-1082.65,9.249e-05,2]
[347558958,1735918233061,-500.0,9.249e-05,2]
[347558960,1735918233071,-500.0,9.249e-05,2]
[347558962,1735918233081,-990.76,9.249e-05,2]
[347558964,1735918233091,-500.0,9.249e-05,2]
[347558966,1735918233100,-1293.17,9.249e-05,2]
[347558968,1735918233110,-711.54,9.249e-05,2]
[347558970,1735918233120,-4429.64,9.249e-05,2]
[347558972,1735918233131,-500.0,9.249e-05,2]
[347558974,1735918233140,-500.0,9.249e-05,2]
[347558976,1735918233150,-500.0,9.25e-05,2]
[347558978,1735918233159,-500.0,9.25e-05,2]
[347558980,1735918233168,-500.0,9.25e-05,2]
[347558982,1735918233178,-500.0,9.25e-05,2]
[347558984,1735918233191,-500.0,9.25e-05,2]
[347558986,1735918233200,-500.0,9.25e-05,2]
[347558988,1735918233210,-500.0,9.25e-05,2]
[347558989,1735918233220,-500.0,9.25e-05,2]
[347558991,1735918233229,-500.0,9.25e-05,2]
[347558993,1735918233239,-500.0,9.25e-05,2]
[347558995,1735918233248,-500.0,9.25e-05,2]
[347558997,1735918233258,-500.0,9.25e-05,2]
[347558999,1735918233267,-500.0,9.25e-05,2]
[347559001,1735918233277,-500.0,9.25e-05,2]
[347559003,1735918233286,-500.0,9.25e-05,2]
[347559004,1735918233295,-500.0,9.25e-05,2]
[347559006,1735918233304,-500.0,9.25e-05,2]
[347559008,1735918233314,-636.01,9.25e-05,2]
[347559010,1735918233323,-500.0,9.25e-05,2]
[347559012,1735918233333,-500.0,9.25e-05,2]
[347559014,1735918233343,-500.0,9.25e-05,2]
[347559016,1735918233353,-500.0,9.25e-05,2]
[347559018,1735918233362,-500.0,9.25e-05,2]
[347559019,1735918233372,-500.0,9.25e-05,2]
[347559020,1735918233382,-500.0,9.25e-05,2]
[347559021,1735918233392,-500.0,9.25e-05,2]
[347559022,1735918233402,-500.0,9.25e-05,2]
[347559023,1735918233411,-500.0,9.25e-05,2]
[347559024,1735918233422,-517.98,9.25e-05,2]
[347559025,1735918233432,-500.0,9.25e-05,2]
[347559026,1735918233443,-500.0,9.25e-05,2]
[347559027,1735918233453,-500.0,9.25e-05,2]
[347559028,1735918233462,-500.0,9.25e-05,2]
[347559029,1735918233472,-500.0,9.25e-05,2]